bitfinex-derivatives/quotes_SOLF0:USTF0_20251020
["timestamp","ask_amount","ask_price","bid_price","bid_amount"]
[1760982006816,4.8422,185.83,185.81,5.01289996]
[1760982007018,4.8422,185.83,185.82,5.01289996]
[1760982007719,4.8416,185.85,185.83,2.75]
[1760982008415,4.841,185.88,185.83,2.75]
[1760982008614,4.841,185.88,185.75,5.02435315]
[1760982008615,4.841,185.88,185.84,5.0127103]
[1760982008814,4.8417,185.85,185.77,2.75]
[1760982009015,4.93983276,185.87,185.78,5.01270897]
[1760982009211,4.93983276,185.86,185.79,5.01270897]
[1760982009417,4.93983276,185.86,185.8,8.97e-06]
[1760982009622,4.8434,185.78,185.73,4.55318]
[1760982009924,46.28,185.84,185.73,4.55318]
[1760982011128,4.93983276,185.85,185.73,4.55318]
[1760982011323,46.26,185.84,185.73,4.55318]
[1760982011521,4.93983276,185.86,185.74,2.75]
[1760982011721,46.26,185.84,185.74,2.75]
[1760982012622,4.8431,185.8,185.74,2.75]
[1760982016626,4.8435,185.78,185.74,2.75]
[1760982017122,46.22,185.85,185.74,2.75]
[1760982018028,4.8432,185.79,185.74,2.75]
[1760982018419,46.22,185.85,185.74,2.75]
[1760982018816,8.55881103,185.83,185.73,1.80318]
[1760982019622,4.8443,185.75,185.73,8e-05]
[1760982020518,1.08,185.74,185.65,5.02435315]
[1760982020718,8.55881103,185.75,185.66,5.02435315]
[1760982021326,8.55881103,185.75,185.65,5.02435315]
[1760982021524,4.8454,185.71,185.65,7.78435315]
[1760982021719,36.23881103,185.8,185.68,5.02435315]
[1760982021917,36.23881103,185.8,185.7,2.76]
[1760982022121,4.8437,185.77,185.7,2.76]
[1760982022825,4.8431,185.79,185.7,2.76]
[1760982023523,4.8435,185.78,185.7,2.76]
[1760982024221,4.8429,185.8,185.7,2.76]
[1760982024423,4.8429,185.8,185.71,2.76]
[1760982026925,4.8433,185.79,185.71,2.76]
[1760982027533,4.8426,185.81,185.71,2.76]
[1760982027733,4.8426,185.81,185.72,2.96]
[1760982028032,59.67864379,185.86,185.72,2.96]
[1760982028539,4.8432,185.79,185.72,2.96]
[1760982032645,4.8435,185.78,185.72,2.96]
[1760982033644,9.6835,185.84,185.69,7.98435315]
[1760982033844,4.93983276,185.83,185.69,2.96]
[1760982034652,4.844,185.76,185.69,2.96]
[1760982036852,4.844,185.76,185.69,5.02435315]
[1760982037048,4.844,185.76,185.7,2.96]
[1760982037351,4.8434,185.78,185.7,2.96]
[1760982038454,4.8438,185.77,185.7,2.96]
[1760982039857,4.844,185.76,185.7,2.96]
[1760982040355,14.62333276,185.84,185.7,2.96]
[1760982040356,9.6841,185.83,185.7,2.96]
[1760982040855,14.62393276,185.83,185.7,2.96]
[1760982043154,4.8439,185.76,185.7,2.96]
[1760982043547,14.62393276,185.83,185.7,2.96]
[1760982043949,4.8443,185.75,185.7,2.96]
[1760982044359,9.6841,185.83,185.72,2.96]
[1760982044548,4.93983276,185.85,185.72,2.96]
[1760982044751,4.93983276,185.86,185.73,2.96]
[1760982045258,4.93983276,185.85,185.73,2.96]
[1760982045460,4.93983276,185.86,185.74,2.96]
[1760982046258,4.93983276,185.85,185.74,2.96]
[1760982046458,4.93983276,185.86,185.74,2.96]
[1760982047052,4.8427,185.81,185.74,2.96]
[1760982048961,4.93983276,185.86,185.74,2.96]
[1760982051767,4.93983276,185.86,185.73,9.86885315]
[1760982051768,4.93983276,185.87,185.76,2.96]
[1760982053167,4.8421,185.83,185.76,2.96]
[1760982054356,6.58004745,185.9,185.76,2.96]
[1760982054560,36.30004745,185.91,185.77,2.96]
[1760982056064,4.8413,185.86,185.77,2.96]
[1760982056363,6.58004745,185.91,185.77,2.96]
[1760982056662,4.8408,185.88,185.79,2.96]
[1760982057070,6.58004745,185.91,185.79,2.96]
[1760982057461,6.58004745,185.92,185.79,2.96]
[1760982057662,6.58004745,185.92,185.81,2.82]
[1760982057862,6.58004745,185.92,185.82,7.23334189]
[1760982058062,6.58004745,185.92,185.83,4.41334189]
[1760982058262,6.58004745,185.92,185.84,4.41334189]
[1760982058460,4.8409,185.88,185.85,4.41334189]
[1760982058666,4.8409,185.88,185.82,2.82]
[1760982061575,6.58004745,185.93,185.82,2.82]
[1760982063264,6.58004745,185.94,185.82,2.82]
[1760982063678,6.58004745,185.95,185.82,2.82]
[1760982063868,6.58004745,185.95,185.84,2.82]
[1760982064067,4.8403,185.9,185.86,2.82]
[1760982066877,4.8403,185.9,185.88,2.82]
[1760982067077,7.51641231,185.97,185.88,2.82]
[1760982067670,0.93636486,185.97,185.9,2.82]
[1760982067872,0.93636486,185.97,185.91,8.03403616]
[1760982068080,0.93636486,185.97,185.92,8.03403616]
[1760982068279,0.93636486,185.97,185.93,5.21403616]
[1760982068480,4.8386,185.96,185.94,5.21403616]
[1760982068683,0.93636486,185.97,185.92,2.82]
[1760982069271,0.93636486,185.97,185.87,2.82]
[1760982069474,0.93636486,185.97,185.89,2.82]
[1760982069675,4.8393,185.94,185.9,7.83290126]
[1760982069983,4.8393,185.94,185.92,2.82]
[1760982071279,5.25955081,186.0,185.92,2.82]
[1760982071479,5.25955081,186.03,185.94,2.82]
[1760982071980,0.93591157,186.02,185.94,2.82]
[1760982072178,4.8382,185.98,185.94,2.82]
[1760982072776,4.8377,186.0,185.94,2.82]
[1760982072977,0.93591157,186.02,185.94,2.82]
[1760982074088,4.838,185.99,185.94,2.82]
[1760982075281,0.93591157,186.02,185.94,2.82]
[1760982075484,5.25955081,185.99,185.88,2.86]
[1760982075790,5.25955081,185.99,185.89,7.83497193]
[1760982075991,4.8395,185.93,185.91,2.86]
[1760982076383,4.839,185.95,185.91,2.86]
[1760982077480,5.25955081,185.99,185.91,2.86]
[1760982078682,4.8388,185.96,185.91,2.86]
[1760982078880,5.25955081,185.99,185.91,2.86]
[1760982079782,5.25955081,185.99,185.92,7.82757127]
[1760982079993,5.25955081,185.99,185.92,2.86]
[1760982080186,5.25955081,186.01,185.92,2.86]
[1760982080994,4.8388,185.96,185.92,2.86]
[1760982081992,5.25955081,186.01,185.92,2.86]
[1760982082995,4.8394,185.94,185.92,2.86]
[1760982086999,4.8388,185.96,185.92,2.86]
[1760982089903,4.8383,185.98,185.93,4.96641801]
[1760982090113,4.8383,185.98,185.89,4.8403]
[1760982090114,4.8383,185.98,185.94,2.82]
[1760982090301,5.25955081,186.05,185.96,2.82]
[1760982090506,4.8374,186.01,185.96,2.82]
[1760982091607,51.05955081,186.07,185.98,2.82]
[1760982092309,4.8369,186.03,185.98,2.82]
[1760982094109,4.8365,186.05,185.98,2.82]
[1760982094508,4.8357,186.08,186.0,2.82]
[1760982094813,4.8357,186.08,186.02,2.82]
[1760982095012,4.8357,186.08,186.04,2.82]
[1760982096304,6.19508498,186.13,186.04,2.82]
[1760982096912,5.25955081,186.09,185.99,2.82]
[1760982097109,5.25955081,186.09,186.01,2.82]
[1760982097406,4.8359,186.07,186.03,2.82]
[1760982098501,4.8354,186.09,186.05,2.82]
[1760982099401,4.8349,186.11,186.05,2.82]
[1760982099607,5.25955081,186.12,186.05,2.82]
[1760982100314,0.93553417,186.13,186.05,2.82]
[1760982101012,4.8349,186.11,186.05,2.82]
[1760982101713,4.8349,186.11,186.07,2.82]
[1760982102305,4.8352,186.1,186.07,2.82]
[1760982104208,250.0,186.35,186.08,4.96168877]
[1760982104415,5.25955081,186.2,186.09,7.78159934]
[1760982104614,5.25955081,186.2,186.09,2.82]
[1760982105210,21.24723426,186.2,186.09,2.82]
[1760982105514,4.8344,186.13,186.09,2.82]
[1760982106812,5.25955081,186.16,186.04,2.82]
[1760982107008,5.25955081,186.16,186.05,8.97982598]
[1760982107311,4.8352,186.1,186.06,4.96038129]
[1760982107514,4.8352,186.1,186.06,2.82]
[1760982109108,4.8352,186.1,186.07,4.96354037]
[1760982109312,4.8352,186.1,186.08,7.78354037]
[1760982109516,4.8352,186.1,186.08,2.82]
[1760982112115,4.8352,186.1,186.09,4.97268806]
[1760982112316,4.8352,186.1,186.08,2.82]
[1760982112819,4.8352,186.1,186.04,2.82]
[1760982113021,4.8352,186.1,186.06,2.82]
[1760982113206,4.8352,186.1,186.07,9.01380184]
[1760982113412,4.834,186.14,186.09,2.82]
[1760982113612,5.25955081,186.18,186.11,2.82]
[1760982113911,4.8339,186.15,186.11,2.82]
[1760982114913,4.8341,186.14,186.11,2.82]
[1760982117322,4.8343,186.13,186.06,2.76]
[1760982117516,4.8343,186.13,186.08,2.76]
[1760982117814,4.8343,186.13,186.1,2.76]
[1760982119210,4.8343,186.13,186.12,2.76]
[1760982120020,4.8339,186.15,186.12,2.76]
[1760982120623,9.6643,186.22,186.12,2.76]
[1760982120624,4.8334,186.17,186.12,2.76]
[1760982121024,14.92385081,186.22,186.12,2.76]
[1760982121924,31.33338249,186.22,186.12,2.76]
[1760982122125,14.92385081,186.22,186.12,2.76]
[1760982122520,4.8337,186.16,186.12,2.76]
[1760982122726,5.25955081,186.18,186.08,2.76]
[1760982122926,5.25955081,186.18,186.09,9.0137854]
[1760982123113,4.8343,186.14,186.1,9.0137854]
[1760982123318,4.8343,186.14,186.1,2.76]
[1760982127535,5.25955081,186.18,186.06,7.73927604]
[1760982127836,21.14502499,186.22,186.07,9.02318733]
[1760982127837,5.25955081,186.14,186.07,9.02318733]
[1760982128036,5.25955081,186.14,186.08,9.02318733]
[1760982128240,5.25955081,186.14,186.09,9.02318733]
[1760982128433,5.25955081,186.14,186.06,2.76]
[1760982128730,4.8355,186.09,186.07,9.02517664]
[1760982128941,8.53709154,186.13,186.02,2.76]
[1760982128942,8.53709154,186.13,186.02,7.73927604]
[1760982129123,8.53709154,186.13,186.03,14.00528813]
[1760982129329,8.53709154,186.13,186.04,9.02601209]
[1760982129530,8.53709154,186.13,186.05,4.97716214]
[1760982129835,8.53709154,186.08,185.97,4.97927604]
[1760982130131,8.53709154,186.08,185.94,4.97927604]
[1760982130329,8.53709154,186.08,185.93,2.76]
[1760982130538,9.6718,186.07,185.93,2.76]
[1760982130735,8.53709154,186.03,185.93,2.76]
[1760982131034,8.53709154,186.03,185.89,2.76]
[1760982131340,4.839,185.96,185.89,2.76]
[1760982131536,8.53709154,186.03,185.89,2.76]
[1760982132139,4.8392,185.95,185.89,2.76]
[1760982132532,8.53709154,186.06,185.89,2.76]
[1760982132734,8.53709154,186.06,185.91,2.76]
[1760982133136,4.8371,186.03,185.93,2.76]
[1760982133339,8.53709154,186.06,185.89,6.63903472]
[1760982133340,8.53709154,186.06,185.91,4.97927604]
[1760982133538,8.53709154,186.06,185.91,7.73927604]
[1760982134933,4.8387,185.97,185.91,2.76]
[1760982135133,8.53709154,186.06,185.91,2.76]
[1760982135727,4.8349,186.11,185.98,2.96]
[1760982135929,8.53709154,186.16,185.98,2.96]
[1760982138837,6.56538568,186.2,185.99,2.96]
[1760982139034,6.56538568,186.21,185.99,2.96]
[1760982139337,24.42256572,186.22,186.01,2.96]
[1760982139338,30.9879514,186.22,186.01,2.96]
[1760982139537,4.8343,186.14,186.02,2.96]
[1760982139739,9.6646,186.21,186.02,2.96]
[1760982139933,30.9879514,186.22,186.02,2.96]
[1760982140336,24.42256572,186.22,186.02,2.96]
[1760982141035,9.6651,186.2,186.02,2.96]
[1760982141234,15.88547418,186.22,186.02,2.96]
[1760982141438,6.56538568,186.23,186.02,2.96]
[1760982141439,30.78,186.21,186.02,2.96]
[1760982141745,30.78,186.21,186.02,4.97927604]
[1760982141945,30.78,186.21,186.03,2.96]
[1760982142441,4.8344,186.13,186.03,2.96]
[1760982143145,4.8348,186.12,186.03,2.96]
[1760982144846,4.834,186.15,186.04,2.96]
[1760982147351,26.12766274,186.22,186.04,2.96]
[1760982148658,4.8343,186.14,186.04,2.96]
[1760982150351,25.00065428,186.22,186.04,2.96]
[1760982150752,30.38265428,186.22,186.04,2.96]
[1760982150946,4.8348,186.12,186.04,2.96]
[1760982152149,4.8341,186.14,186.04,2.96]
[1760982152853,4.8345,186.13,186.04,2.96]
[1760982154141,45.76,186.21,186.04,2.96]
[1760982154142,4.8347,186.12,186.04,2.96]
[1760982155446,45.76,186.21,186.04,2.96]
[1760982156151,4.8353,186.1,186.04,2.96]
[1760982160057,9.6658,186.19,186.04,2.96]
[1760982161960,4.8343,186.14,186.04,2.96]
[1760982162660,4.8344,186.13,186.04,2.96]
[1760982164162,4.8347,186.12,186.04,2.96]
[1760982164563,4.8349,186.11,186.04,2.96]
[1760982167656,16.3809611,186.22,186.06,2.79]
[1760982167855,9.6631,186.24,186.06,2.79]
[1760982168061,8.53709154,186.25,186.06,2.79]
[1760982168674,9.6637,186.23,186.06,2.79]
[1760982169269,4.8339,186.15,186.06,2.79]
[1760982169772,9.664,186.22,186.06,2.79]
[1760982170465,26.15884931,186.22,186.06,2.79]
[1760982171870,4.8339,186.15,186.06,2.79]
[1760982173164,16.49484931,186.22,186.09,2.79]
[1760982173468,40.84,186.25,186.09,2.79]
[1760982173672,4.8326,186.2,186.09,2.79]
[1760982174875,4.833,186.19,186.09,2.79]
[1760982175267,4.8331,186.18,186.09,2.79]
[1760982176774,4.8334,186.17,186.09,2.79]
[1760982177371,4.8337,186.16,186.09,2.79]
[1760982178579,4.834,186.15,186.09,2.79]
[1760982178781,16.03600407,186.22,186.09,2.79]
[1760982178980,9.6637,186.23,186.09,2.79]
[1760982179479,4.8342,186.14,186.09,2.79]
[1760982180072,4.8345,186.13,186.09,2.79]
[1760982180378,9.6643,186.22,186.08,4.99812131]
[1760982180379,8.53709154,186.2,186.08,4.99812131]
[1760982180678,4.8353,186.1,186.06,7.89812131]
[1760982181184,9.6666,186.18,186.06,7.89812131]
[1760982181185,4.93657073,186.15,186.06,2.9]
[1760982181375,4.8353,186.1,186.06,2.9]
[1760982181573,4.93657073,186.16,186.06,2.9]
[1760982181881,4.835,186.11,186.06,2.9]
[1760982182878,4.93657073,186.16,186.06,2.9]
[1760982183380,4.835,186.11,186.06,2.9]
[1760982184978,4.93657073,186.17,186.06,2.9]
[1760982186087,4.8342,186.14,186.06,2.9]
[1760982186685,4.8337,186.16,186.07,2.9]
[1760982186977,4.93657073,186.17,186.07,2.9]
[1760982187685,4.93657073,186.2,186.09,2.9]
[1760982188186,4.93657073,186.23,186.12,2.9]
[1760982189088,4.8325,186.21,186.12,2.9]
[1760982190281,4.8325,186.21,186.13,2.9]
[1760982190488,4.93657073,186.24,186.13,2.9]
[1760982192683,4.8321,186.22,186.14,2.9]
[1760982194585,4.8324,186.21,186.14,2.9]
[1760982195493,16.45588682,186.26,186.14,2.9]
[1760982195693,4.93657073,186.27,186.14,2.9]
[1760982196996,4.8322,186.22,186.14,2.9]
[1760982197583,15.85611273,186.27,186.14,2.9]
[1760982197788,5.87145145,186.29,186.17,2.67]
[1760982198198,4.93657073,186.29,186.17,2.67]
[1760982198492,4.93657073,186.3,186.17,2.67]
[1760982198706,4.93657073,186.32,186.17,2.67]
[1760982199010,4.8306,186.28,186.19,2.67]
[1760982199302,4.93657073,186.32,186.19,2.67]
[1760982199807,20.79967211,186.32,186.19,2.67]
[1760982200401,15.86310138,186.32,186.19,2.67]
[1760982200602,4.8305,186.28,186.19,2.67]
[1760982200808,0.9344916,186.33,186.2,2.67]
[1760982201198,4.8303,186.29,186.2,4.8324]
[1760982201404,4.8303,186.29,186.21,2.67]
[1760982201607,0.9344916,186.33,186.21,2.67]
[1760982202308,4.83,186.3,186.21,2.67]
[1760982204307,4.8303,186.29,186.21,2.67]
[1760982206006,0.9344916,186.33,186.21,2.67]
[1760982206799,4.8311,186.26,186.21,2.67]
[1760982208113,4.8314,186.25,186.21,2.67]
[1760982209413,45.66,186.32,186.16,2.69]
[1760982210317,45.66,186.31,186.16,2.69]
[1760982211119,4.8313,186.25,186.17,2.69]
[1760982211320,5.24497393,186.3,186.17,2.69]
[1760982211921,9.6594,186.31,186.17,2.69]
[1760982212323,45.66,186.3,186.17,2.69]
[1760982213126,4.8312,186.25,186.17,2.69]
[1760982213332,45.66,186.3,186.17,2.69]
[1760982213917,50.90497393,186.3,186.17,2.69]
[1760982214122,4.8319,186.23,186.17,2.69]
[1760982215522,4.8321,186.22,186.17,2.69]
[1760982215821,50.90497393,186.3,186.17,2.69]
[1760982216227,50.90497393,186.3,186.14,2.69]
[1760982216228,5.24497393,186.26,186.14,2.69]
[1760982216926,4.833,186.19,186.14,2.69]
[1760982217425,15.14,186.25,186.12,4.99812131]
[1760982217628,5.24497393,186.22,186.11,2.69]
[1760982219831,4.8342,186.14,186.05,2.69]
[1760982220331,5.24497393,186.22,186.05,2.69]
[1760982220632,5.24497393,186.25,186.05,2.69]
[1760982221325,9.663,186.24,186.07,5.24497393]
[1760982221529,53.023,186.24,186.08,2.69]
[1760982221718,4.8334,186.17,186.08,2.69]
[1760982222325,4.8337,186.16,186.08,2.69]
[1760982222923,4.93657073,186.27,186.08,2.69]
[1760982223733,4.8332,186.18,186.08,2.69]
[1760982224729,4.8334,186.17,186.08,2.69]
[1760982225028,50.90497393,186.28,186.08,2.69]
[1760982225236,4.833,186.19,186.11,5.24497393]
[1760982225430,4.833,186.19,186.12,2.69]
[1760982226530,4.8332,186.18,186.12,2.69]
[1760982229240,9.6625,186.25,186.12,2.69]
[1760982229241,4.8334,186.17,186.12,2.69]
[1760982229738,4.8328,186.19,186.12,2.69]
[1760982233247,4.93657073,186.29,186.16,2.69]
[1760982233632,4.8317,186.24,186.16,2.69]
[1760982234733,50.57657073,186.31,186.16,2.69]
[1760982235044,45.64,186.31,186.16,2.69]
[1760982235245,4.8308,186.27,186.17,2.69]
[1760982236138,4.831,186.26,186.17,2.69]
[1760982238749,4.831,186.26,186.18,2.94]
[1760982241945,4.8314,186.25,186.18,2.94]
[1760982242150,5.87106233,186.33,186.18,2.94]
[1760982242851,4.8308,186.27,186.18,2.94]
[1760982243247,5.87106233,186.33,186.18,2.94]
[1760982244454,4.8305,186.28,186.18,2.94]
[1760982244755,5.87106233,186.33,186.18,2.94]
[1760982245943,4.8307,186.27,186.18,2.94]
[1760982246246,5.87106233,186.33,186.18,2.94]
[1760982247057,4.93657073,186.32,186.18,2.94]
[1760982247251,10.18154466,186.31,186.18,2.94]
[1760982247658,9.6598,186.3,186.18,2.94]
[1760982250255,4.8321,186.22,186.18,2.94]
[1760982250853,4.8315,186.24,186.18,2.94]
[1760982251358,9.6598,186.3,186.18,2.94]
[1760982251559,4.8317,186.23,186.18,2.94]
[1760982252862,4.832,186.22,186.18,2.94]
[1760982253266,9.6605,186.29,186.18,2.94]
[1760982254255,4.8323,186.21,186.18,2.94]
[1760982255865,9.6608,186.28,186.18,2.94]
[1760982258568,4.8319,186.23,186.18,2.94]
[1760982259968,4.832,186.22,186.15,2.91]
[1760982260961,4.8323,186.21,186.15,2.91]
[1760982261872,4.8326,186.2,186.15,2.91]
[1760982262676,4.8328,186.19,186.15,2.91]
[1760982263177,4.93657073,186.29,186.15,2.91]
[1760982263369,4.8334,186.17,186.15,2.91]
[1760982267276,4.8334,186.17,186.11,9.52903472]
[1760982267580,4.8334,186.17,186.12,2.89]
[1760982268582,36.1819,186.26,186.12,2.89]
[1760982269177,4.8328,186.19,186.12,2.89]
[1760982270882,4.94031028,186.23,186.12,2.89]
[1760982273489,4.8331,186.18,186.12,2.89]
[1760982276083,4.8334,186.17,186.12,2.89]
[1760982276286,4.94031028,186.24,186.12,2.89]
[1760982276779,4.8337,186.16,186.12,2.89]
[1760982276984,4.94031028,186.23,186.12,2.89]
[1760982277175,4.94031028,186.24,186.12,2.89]
[1760982277789,4.8338,186.15,186.12,2.89]
[1760982279593,4.94031028,186.24,186.12,2.89]
[1760982279594,4.8326,186.2,186.12,2.89]
[1760982279782,4.94031028,186.25,186.12,2.89]
[1760982280286,4.94031028,186.26,186.12,2.89]
[1760982281193,4.8328,186.19,186.12,2.89]
[1760982282691,4.8331,186.18,186.12,2.89]
[1760982283693,4.8334,186.17,186.12,2.89]
[1760982284092,4.8336,186.16,186.12,2.89]
[1760982284299,4.94031028,186.25,186.12,2.89]
[1760982284988,4.8336,186.16,186.12,2.89]
[1760982285900,4.8339,186.15,186.12,2.89]
[1760982286391,4.94031028,186.24,186.09,7.91019236]
[1760982286990,9.6649,186.21,186.09,7.91019236]
[1760982287190,4.94031028,186.24,186.1,2.89]
[1760982287698,4.8336,186.16,186.1,2.89]
[1760982287890,4.94031028,186.25,186.1,7.91019236]
[1760982288092,4.94031028,186.25,186.11,2.89]
[1760982288292,4.833,186.18,186.11,2.89]
[1760982288795,4.8333,186.17,186.11,2.89]
[1760982290105,4.8335,186.16,186.11,2.89]
[1760982290603,9.6629,186.24,186.11,2.89]
[1760982291501,9.6634,186.23,186.11,2.89]
[1760982291906,4.8338,186.15,186.11,2.89]
[1760982292302,9.6641,186.22,186.11,2.89]
[1760982292504,4.8341,186.14,186.11,2.89]
[1760982293002,4.8343,186.13,186.11,2.89]
[1760982293406,4.94031028,186.24,186.11,2.89]
[1760982294502,4.8333,186.17,186.11,2.89]
[1760982294910,4.94031028,186.24,186.11,2.89]
[1760982296309,4.8326,186.2,186.12,2.89]
[1760982297308,4.8328,186.19,186.12,2.89]
[1760982297709,4.94031028,186.24,186.12,2.89]
[1760982298411,4.8331,186.18,186.12,2.89]
[1760982299009,4.8333,186.17,186.12,2.89]
[1760982300006,4.8326,186.2,186.12,2.89]
[1760982300407,4.94031028,186.24,186.12,2.89]
[1760982300913,4.94031028,186.23,186.12,2.89]
[1760982302422,4.94031028,186.22,186.12,2.89]
[1760982302609,4.94031028,186.23,186.12,2.89]
[1760982302917,4.8328,186.19,186.12,2.89]
[1760982303214,4.94031028,186.24,186.12,2.89]
[1760982303904,4.94031028,186.24,186.09,6.69358982]
[1760982303905,14.60381028,186.23,186.1,5.02019236]
[1760982304108,4.94031028,186.22,186.1,7.91019236]
[1760982304310,4.94031028,186.22,186.1,2.89]
[1760982304510,9.6644,186.21,186.1,2.89]
[1760982304711,14.60471028,186.21,186.1,2.89]
[1760982305016,4.94031028,186.23,186.11,2.89]
[1760982305313,4.8338,186.15,186.11,2.89]
[1760982306308,14.60471028,186.21,186.09,7.91019236]
[1760982306514,4.94031028,186.2,186.09,2.89]
[1760982306916,4.8338,186.15,186.1,2.89]
[1760982307414,4.94031028,186.2,186.1,2.89]
[1760982307715,4.8341,186.14,186.1,2.89]
[1760982308110,4.94031028,186.2,186.1,2.89]
[1760982308111,4.8343,186.13,186.1,2.89]
[1760982310319,4.8343,186.13,186.11,2.89]
[1760982311414,4.94031028,186.23,186.13,2.89]
[1760982311719,6.58708037,186.25,186.12,1.08]
[1760982311720,4.94031028,186.22,186.14,2.89]
[1760982311920,6.58708037,186.25,186.14,2.89]
[1760982311921,4.94031028,186.23,186.14,2.89]
[1760982312515,4.833,186.18,186.14,2.89]
[1760982313922,4.8325,186.2,186.14,2.89]
[1760982314123,4.94031028,186.23,186.16,5.24289178]
[1760982314315,4.94031028,186.24,186.17,2.86]
[1760982314728,4.832,186.22,186.17,2.86]
[1760982315220,4.8325,186.2,186.17,2.86]
[1760982315417,4.94031028,186.23,186.14,2.86]
[1760982315920,4.8334,186.17,186.12,7.88813378]
[1760982316123,4.94031028,186.22,186.11,5.02813378]
[1760982316314,4.94031028,186.19,186.09,5.02813378]
[1760982316828,3.9636121,186.18,186.09,5.02813378]
[1760982317028,3.9636121,186.17,186.09,5.02813378]
[1760982317319,3.9636121,186.16,186.1,2.86]
[1760982317527,3.9636121,186.15,186.1,2.86]
[1760982317709,3.9636121,186.14,186.1,2.86]
[1760982317912,4.94031028,186.19,186.1,2.86]
[1760982318119,3.96358676,186.18,186.1,2.86]
[1760982318328,3.96358676,186.17,186.1,2.86]
[1760982318626,3.96358676,186.16,186.1,2.86]
[1760982318920,4.8341,186.14,186.1,2.86]
[1760982319122,3.96358676,186.13,186.1,2.86]
[1760982319424,4.8341,186.14,186.1,2.86]
[1760982319621,3.96312275,186.13,186.1,2.86]
[1760982319821,4.8341,186.14,186.1,2.86]
[1760982320022,3.96177564,186.13,186.1,2.86]
[1760982320324,4.8341,186.14,186.1,2.86]
[1760982320626,4.8335,186.16,186.1,2.86]
[1760982320921,3.95985072,186.15,186.1,2.86]
[1760982321121,3.95985072,186.14,186.1,2.86]
[1760982321321,4.94031028,186.18,186.1,2.86]
[1760982321526,4.8336,186.16,186.1,2.86]
[1760982324625,9.77341028,186.18,186.1,2.86]
[1760982324930,4.8331,186.18,186.1,2.86]
[1760982325715,4.94031028,186.2,186.1,2.86]
[1760982326616,4.833,186.18,186.1,2.86]
[1760982326825,4.94031028,186.21,186.1,2.86]
[1760982327326,4.8336,186.16,186.1,2.86]
[1760982329631,4.8338,186.15,186.1,2.86]
[1760982331032,4.94031028,186.21,186.1,4.8349]
[1760982331033,4.8333,186.17,186.1,4.8349]
[1760982331232,4.8333,186.17,186.11,2.73]
[1760982331823,4.8327,186.19,186.12,2.73]
[1760982333433,4.8327,186.19,186.13,2.73]
[1760982333627,4.55088136,186.2,186.13,2.73]
[1760982333834,4.51164134,186.2,186.13,2.73]
[1760982334131,6.58708037,186.25,186.13,2.73]
[1760982334132,4.51164134,186.21,186.13,2.73]
[1760982334332,4.94031028,186.23,186.13,2.73]
[1760982334534,4.51093756,186.22,186.13,2.73]
[1760982334728,4.51107907,186.22,186.13,2.73]
[1760982335030,4.51107907,186.23,186.13,2.73]
[1760982335228,4.51107907,186.22,186.13,2.73]
[1760982335431,4.51107907,186.24,186.13,2.73]
[1760982335626,4.51107907,186.23,186.17,2.73]
[1760982335826,4.51107907,186.22,186.17,2.73]
[1760982336029,9.34257907,186.24,186.17,2.73]